Cogmind - Beta 15 @@@ ROGUE MODE // 2025.06.14 @ 19:39:13 Player: quak Result: Destroyed by Y-45 Defender with Beam Rifle Performance ------------- Evolutions (1) 500 Regions Visited (2) 400 Robots Destroyed (27) 135 Value Destroyed (557) 557 Prototype IDs (1) 20 Alien Tech Used (0) 0 Bonus (0) 0 TOTAL SCORE: 1612 Bonus ------- None Cogmind --------- Core Integrity 0/400 Matter 213/300 Energy 98/100 System Corruption 0% Temperature Cool (9) Movement Core (50) Location -9/Materials Parts ------- > --- POWER (1) -------- (None) > --- PROPULSION (3) --- (None) > --- UTILITY (3) ------ Terrain Scan Processor > --- WEAPON (2) ------- (None) > --- INVENTORY (5) ---- Light Ion Engine Large Battery (200) Improved Terrain Scanner Grenade Launcher Peak State ------------ > --- POWER ------------ (None) > --- PROPULSION ------- Improved Flight Unit Improved Flight Unit Improved Flight Unit > --- UTILITY ---------- Sensor Array > --- WEAPON ----------- Grenade Launcher > --- INVENTORY -------- Light Ion Engine Flight Unit Large Battery Grenade Launcher [Rating: 11] Favorites ----------- Power Ion Engine Engine Ion Engine Propulsion Light Treads Treads Light Treads Hover Unit Hover Unit Flight Unit Flight Unit Utility Improved Terrain Scanner Device Improved Terrain Scanner Storage Large Battery Processor Terrain Scan Processor Weapon Assault Rifle Energy Gun Small Laser Ballistic Gun Assault Rifle Launcher Grenade Launcher Build | -11 -10 -9 ------- Run | Yrd Mat Mat Slots Evolved 2 | . . 2 Power . | . . . Propulsion 1 | . . 1 Utility 1 | . . 1 Weapon . | . . . Parts Attached 31 | 5 19 7 Power 4 | . 3 1 Engine 4 | . 3 1 Core . | . . . Reactor . | . . . Propulsion 13 | 2 8 3 Treads 2 | 2 . . Leg . | . . . Wheel . | . . . Hover 4 | . 4 . Flight 7 | . 4 3 Utility 6 | 1 3 2 Device 4 | 1 2 1 Storage 1 | . 1 . Processor 1 | . . 1 Hackware . | . . . Protection . | . . . Artifact . | . . . Weapon 8 | 2 5 1 Energy Gun 2 | 1 1 . Energy Cannon . | . . . Ballistic Gun 1 | 1 . . Ballistic Cannon . | . . . Launcher 5 | . 4 1 Special Weapon . | . . . Impact Weapon . | . . . Slashing Weapon . | . . . Piercing Weapon . | . . . Special Melee Weapon . | . . . Unidentified Prototypes 1 | . . 1 Parts Lost 15 | 1 4 10 Power 3 | . 1 2 Propulsion 7 | . 2 5 Utility 1 | . . 1 Weapon 4 | 1 1 2 Highest Loss Streak 7 | 1 3 7 To Critical Strikes . | . . . Average Backups 1 | 1 3 3 Power . | . . 1 Propulsion . | . . . Utility . | . . 1 Weapon . | . 1 1 Tool/Special . | . . . Unused Backups 5 | . 4 1 Power 1 | . . 1 Propulsion 3 | . 3 . Utility 1 | . 1 . Weapon . | . . . Tool/Special . | . . . Average Slot Usage (%) 72 | . 77 57 Engine 10 | . 11 7 Treads 2 | . 3 . Hover 12 | . 16 . Flight 11 | . 6 26 Device 16 | . 19 9 Energy Gun 1 | . 2 . Ballistic Gun 5 | . 6 . Launcher 9 | . 8 11 Peak Build Rating 11 | 7 8 11 Average Rating 6 | 6 5 7 On Entrance 3 | . 6 5 Naked Turns . | . . . Heaviest Build 13 | 4 13 10 Greatest Support 40 | 40 40 15 Greatest Overweight (x) 2 | . 2 1 Average Overweight (x) . | . . . Largest Inventory Capacity 5 | 5 5 5 Average Capacity 5 | 5 5 5 Most Carried 5 | 3 5 5 Average Carried 1 | 1 3 3 Final Capacity 5 | 5 5 5 Final Carried 4 | 1 4 4 Class Distribution -------------------- 87% | Mutant 12% | Scavenger-Mutant Dominant Class ---------------- Mutant | -10/Materials Mutant | -9/Materials Resources | -11 -10 -9 ----------- Run | Yrd Mat Mat Matter Collected 552 | 248 174 130 Remotely . | . . . Salvage Created 464 | 22 235 207 Parts 45 | 3 24 18 Haulers Intercepted 3 | . 2 1 Recyclers Shooed 1 | . . 1 Parts Field Recycled . | . . . Retrieved Matter . | . . . Parts Self-Destructed . | . . . Prevented . | . . . Kills | -11 -10 -9 ------- Run | Yrd Mat Mat Combat Hostiles Destroyed 19 | . 10 9 Guns 2 | . 2 . AOE 17 | . 8 9 Classes Destroyed 7 | 1 4 2 Builder 1 | . . 1 Tunneler 2 | 1 . 1 Hauler 3 | . 2 1 Operator 2 | . 2 . Swarmer 10 | . 6 4 Grunt 8 | . 4 4 Sentry 1 | . . 1 Best Kill Streak 8 | 1 3 8 Combat Bots Only 7 | . 3 7 Max Kills in Single Turn 4 | 1 2 4 Gunslinging . | . . . Exploded 4 | . 2 4 Melee . | . . . Uniques/NPCs Destroyed . | . . . Combat | -11 -10 -9 -------- Run | Yrd Mat Mat Hostile Shots Fired 126 | 4 32 90 Missed 56 | . 14 42 Hits 70 | 4 18 48 Projectile 70 | 4 18 48 AOE 4 | 4 . . Critical Strikes 1 | . . 1 Damage Taken 1219 | 162 284 773 Core 454 | . 49 405 Absorbed by Shields . | . . . Regen/Repaired (Parts) 18 | . 18 . Core Remaining (%) 90 | 100 80 . Volleys Fired 27 | 1 18 8 Largest 2 | 2 2 2 Hottest 70 | 60 70 60 Shots Fired 46 | 2 31 13 Gun 12 | 2 10 . Cannon . | . . . Launcher 34 | . 21 13 Special . | . . . Kinetic 5 | 1 4 . Thermal 1 | 1 . . Explosive 34 | . 21 13 Electromagnetic 6 | . 6 . Robot Hit Streak 6 | 2 6 5 Robot Miss Streak 1 | . 1 1 Penetration Max . | . . . Secondary Targets . | . . . Shots Hit Robots 21 | 2 14 5 Core Hits 43 | 1 20 22 Critical Kills . | . . . Critical Parts Destroyed . | . . . Critical Strikes . | . . . Melee Attacks . | . . . Impact . | . . . Slashing . | . . . Piercing . | . . . Sneak Attacks . | . . . Combat Hostiles . | . . . Follow-up Attacks . | . . . Damage Inflicted 1535 | 25 876 634 Guns 121 | 25 96 . Cannons . | . . . Explosions 1414 | . 780 634 Melee . | . . . Ramming . | . . . Kinetic 40 | 14 26 . Thermal 11 | 11 . . Explosive 1414 | . 780 634 Electromagnetic 70 | . 70 . Impact . | . . . Slashing . | . . . Piercing . | . . . Highest Corruption . | . . . Average Corruption . | . . . Corruption Purged . | . . . Corruption Blocked . | . . . Overload Shots . | . . . Overflow Damage 63 | . 31 32 Projectiles . | . . . Explosions 63 | . 31 32 Melee . | . . . Knockbacks . | . . . Impact . | . . . Kinetic . | . . . Secondary . | . . . Self-Inflicted Damage 189 | . 97 92 Shots 6 | . 4 2 Rammed . | . . . Targets Rammed . | . . . Kicked . | . . . Crushed . | . . . Highest Temperature 30 | . 30 14 Average Temperature 8 | . 11 7 Received Heat Transfer 264 | . 60 204 Siege Activations . | . . . Martial Activations . | . . . Shielding Activations . | . . . Robots Disrupted . | . . . Combat Hostiles . | . . . Robots Corrupted . | . . . Combat Hostiles . | . . . Parts Fried . | . . . Impact Corruptions . | . . . Robots Melted . | . . . Combat Hostiles . | . . . Parts Melted . | . . . Heat Transferred 25 | 25 . . Parts Sabotaged . | . . . Parts Stolen . | . . . Parts Stripped . | . . . Power Chain Reactions . | . . . Alert | -11 -10 -9 ------- Run | Yrd Mat Mat Maximum Alert Level 1 | . . 1 Low Security (%) 94 | 100 100 35 Level 1 5 | . . 64 Level 2 . | . . . Level 3 . | . . . Level 4 . | . . . Level 5 . | . . . High Security . | . . . Max Security . | . . . Peak Influence 358 | 5 169 358 Initial 35 | . . 35 Average 28 | . 39 218 Influence Increases 950 | 5 447 498 Destroy 0b10 Robot/C 380 | . 200 180 Destroy 0b10 Robot/NC 40 | 5 20 15 Destroy Leader 66 | . 44 22 Successful Hack 11 | . 11 . Disable Machine 105 | . 75 30 Destroy Structure 138 | . 97 41 Partial Spotted 75 | . . 75 Lose Combat Pursuer 135 | . . 135 Influence Decreases 627 | 5 363 259 Entered New Map 49 | . . 49 Time Decay 288 | 5 173 110 Lost Part 140 | . 40 100 Purge Threat 150 | . 150 . Squads Dispatched 2 | . 2 . Investigation 2 | . 2 . Extermination . | . . . Reinforcement . | . . . Assault . | . . . Garrison . | . . . Intercept . | . . . Searches Triggered . | . . . Construction Impeded . | . . . Haulers Reinforced . | . . . Active Scanning Responses . | . . . Cargo Convoy Interrupts . | . . . Stealth | -11 -10 -9 --------- Run | Yrd Mat Mat Distress Signals 1 | . . 1 Communications Jammed . | . . . Distress Signals . | . . . Times Spotted 45 | 2 14 29 Peak Tracking Total 11 | 2 4 11 Tactical Retreats 4 | . . 4 Traps | -11 -10 -9 ------- Run | Yrd Mat Mat Traps Triggered 2 | . 2 . Indirectly . | . . . Trap Hack Attempts . | . . . Triggered . | . . . Disarmed . | . . . Reprogrammed . | . . . Reused . | . . . Traps Extracted . | . . . Installed . | . . . Triggered . | . . . Machines | -11 -10 -9 ---------- Run | Yrd Mat Mat Machines Disabled 7 | . 5 2 Max in Single Turn 2 | . 2 1 Machines Repaired . | . . . Machines Dismantled . | . . . Machines Sabotaged . | . . . Overloaded Fab Kills . | . . . Hacking | -11 -10 -9 --------- Run | Yrd Mat Mat Machines Accessed 16 | . 11 5 Terminals 12 | . 8 4 Fabricators . | . . . Repair Stations 1 | . 1 . Recycling Units 2 | . 2 . Scanalyzers 1 | . . 1 Garrison Access . | . . . Total Hacks 35 | . 27 8 Successful 11 | . 10 1 Failed 24 | . 17 7 Catastrophic 6 | . 5 1 Database Lockouts . | . . . Manual 19 | . 15 4 Terminals 26 | . 21 5 Fabricators . | . . . Repair Stations 2 | . 2 . Recycling Units 4 | . 4 . Scanalyzers 3 | . . 3 Garrison Access . | . . . Terminal Hacks 5 | . 4 1 Robot Analysis 1 | . 1 . Branch Access Points 1 | . . 1 Alert Level 1 | . 1 . Unreport Threat 1 | . 1 . Hauler Manifests 1 | . 1 . Fabricator Hacks . | . . . Repair Station Hacks 2 | . 2 . Scan Component 1 | . 1 . Repair 1 | . 1 . Recycling Unit Hacks 3 | . 3 . Process 1 | . 1 . Report Inventory 1 | . 1 . Retrieve Matter 1 | . 1 . Scanalyzer . | . . . Garrison Access Hacks . | . . . Unauthorized Hacks 1 | . 1 . Terminals . | . . . Fabricators . | . . . Repair Stations . | . . . Recycling Units 1 | . 1 . Mask 1 | . 1 . Scanalyzers . | . . . Garrison Access . | . . . Data Cores Recovered 1 | . 1 . Used 1 | . 1 . Hacking Detections 14 | . 10 4 Full Trace Events 1 | . 1 . Feedback Events . | . . . Feedback Blocked . | . . . Robot Schematics Acquired . | . . . Robots Built . | . . . Authchips . | . . . Time . | . . . Total Robot Build Rating . | . . . Part Schematics Acquired . | . . . Parts Built . | . . . Authchips . | . . . Time . | . . . Total Part Build Rating . | . . . Parts Repaired 1 | . 1 . Time 38 | . 38 . Parts Recycled . | . . . Recycled Matter 187 | . 187 . Retrieved Matter 271 | . 271 . Retrieved Components . | . . . Parts Scanalyzed . | . . . Part Schematics Acquired . | . . . Parts Damaged . | . . . Bothacking | -11 -10 -9 ------------ Run | Yrd Mat Mat Used RIF Installer . | . . . Robots Hacked . | . . . Non-combat . | . . . Combat . | . . . Robot Hacks Applied . | . . . Relay Couplers Released . | . . . Fabnet Peak Effective % . | . . . Robots Rewired . | . . . Allies Hacked . | . . . Hacks Repelled . | . . . Allies | -11 -10 -9 -------- Run | Yrd Mat Mat Total Allies . | . . . Largest Group . | . . . Highest-Rated Group . | . . . Highest-Rated Ally . | . . . Total Orders . | . . . Ally Attacks . | . . . Total Damage . | . . . Kills . | . . . Allies Corrupted . | . . . Allies Melted . | . . . Intel | -11 -10 -9 ------- Run | Yrd Mat Mat Active Infowar (turns) 2430 | 1681 556 193 Sensors 572 | . 414 158 Terrain 1858 | 1681 142 35 Robot Analysis Total 1 | . 1 . Derelict Logs Recovered . | . . . Drone Launches . | . . . Drone Recoveries . | . . . Exploration | -11 -10 -9 ------------- Run | Yrd Mat Mat Turns Passed 2669 | 1746 695 228 Spaces Moved 1868 | 453 891 524 Core 26 | 3 . 23 Treads 502 | 450 52 . Legs . | . . . Wheels . | . . . Hover 523 | . 523 . Flight 817 | . 316 501 Fastest Speed 34 | 50 37 34 Average Speed 78 | 159 62 36 Slowest Speed 200 | 160 200 100 Overloaded Moves . | . . . Propulsion Burnouts . | . . . Robots Hopped 10 | . 3 7 Potential Cave-ins . | . . . Cave-ins Triggered . | . . . Exploration Rate (%) 61 | 35 98 52 Regions Visited 2 Branch Regions . Pre-discovered Areas . | . . . Known Exits Taken . | . . . Unknown Exits Taken 2 | 1 1 . Scrap Searched . | . . . Spaces Dug 11 | . 11 . Terrain Destroyed 148 | . 104 44 Melee . | . . . Projectile . | . . . AOE 148 | . 104 44 Terrain Rammed . | . . . Walls Destroyed . | . . . Machines Disabled . | . . . Actions | -11 -10 -9 --------- Run | Yrd Mat Mat Total 3007 | 1474 993 540 Wait 1041 | 1013 28 . Move 1846 | 452 884 510 Hop 10 | . 3 7 Pick Up 20 | 3 16 1 Fast Attach 13 | 3 6 4 Attach 16 | 2 10 4 Detach 5 | . 3 2 Swap 14 | . 11 3 Drop 15 | . 14 1 Fire 27 | 1 18 8 Melee . | . . . Ram . | . . . Kick . | . . . Crush . | . . . Escape Stasis . | . . . Rewire . | . . . Trap . | . . . Miscellaneous . | . . . Route ------- -11/Scrapyard -10/Materials (discovered 5 exits: *Mat x3 / [*Min x2]) -9/Materials (discovered 2 exits: [*Mat] / *Min) History --------- Turn | Location | Event 28 | -11/Scrapyard | Discovered new exit (range 16) 1744 | -11/Scrapyard | Assembled infested the area 1747 | -11/Scrapyard | Entered Materials 1748 | -10/Materials | Build established: Mutant 1748 | -10/Materials | Met a group of wandering Federalists 1927 | -10/Materials | Repaired Imp. Terrain Scanner? 1934 | -10/Materials | Discovered new exit (range 6) 2022 | -10/Materials | Discovered new exit (range 16) 2159 | -10/Materials | Discovered new exit (range 16) 2170 | -10/Materials | Build established: Scavenger-Mutant 2283 | -10/Materials | Discovered new exit (range 5) 2320 | -10/Materials | Discovered new exit (range 13) 2431 | -10/Materials | Lost 3 parts (1p1n1w) 2442 | -10/Materials | Entered another Materials area 2442 | -9/Materials | Evolved 2 slots: Propulsion x1, Utility x1 2502 | -9/Materials | Build established: Mutant 2510 | -9/Materials | Discovered new exit (range 13) 2553 | -9/Materials | Destroyed 7 combat bots 2630 | -9/Materials | Identified exit to Mines 2631 | -9/Materials | Lost 7 parts (1p3n1u2w) 2641 | -9/Materials | Discovered new exit (range 16) 2651 | -9/Materials | Core integrity fell below 50% 2666 | -9/Materials | Core integrity fell below 20% 2670 | -9/Materials | Destroyed by Y-45 Defender with Beam Rifle Last Messages --------------- 02611_ Acquired Terrain Scan Processor. 02611_ K-01 Serf cleans the Nuclear Reactor. 02630_ Connecting with Terminal... >>Access(Branch) Found 1 branch access point: (84,15) Mines Map updated. 02635_ T-07 Excavator is excavating. 02639_ Flight Unit destroyed. 02641_ EXIT=FOUND 02647_ Processing Tank disabled. 02652_ K-01 Serf collects debris. 02653_ Critical hit (Burn: +37). 02656_ T-07 Excavator is excavating. 02656_ K-01 Serf collects debris. 02657_ Imp. Flight Unit destroyed. 02661_ Ion Engine destroyed. 02669_ T-07 Excavator is excavating. 02669_ K-01 Serf collects debris. 02670_ U-05 Engineer lays Concrete. Map ----- +----------------------------------------------------+ | ??????????????????????#??# # #??????# ? | | ????????????????#???##???# # #? ????????? | | ???????????############### #######? ???????? | | ?????# #######? ????????? | | ???????????############### # #??????????? | | ?????????????#?????#??##?# # "" # ?????????? | | ????????????###??#???????# # T" #???? ?????? | | ?????????????????????#???# # "" #??????????? | | ????????????????#?????#### # # ???? ????? | | ??????????????#??#?????# # #? ????????? | | ?????????????###???#???# + """ #? ??? ????? | | ???????????#??#???#?#?## # """ #??????????? | | ??????????????????????## # """ #??#???????? | | ???????????#?#?????????# # """ #??????????? | | ??????????????#????????# # #??????????? | | ??????????#????????#???# #! [ #??????????? | | ?????????????????????### #######???????#??? | | ????????????###?######## #????????????????? | | ????????????# u# ## #??????#?????????? | | ?????????#??# k# #????????????????? | | ?????????????# #????#???????????? | | ????????????### # #????????????????? | | ??????????????#?# Y######?#???#??????????? | | ????????????????## ##??????#??????????????? | | ??????????#??????# #????????#?????????????? | | ?????????????????# @#?#???#???????#????????? | | ????????########## #?????#?????#??????????? | | ???????? # #????????##????????????? | | ????????? # #?????#????#???????????? | | ??????????"" """ # #???##?????????????????? | | ??????????"" """ + #??????????????????????? | | ??????????"" """ # Y #??????????????????????? | | ???????# # #??????????????????????? | | ???????# # #??????????????????????? | | ???????# # #??????????????????????? | | ???????########### #?????#????????????????? | | ?????????????????# #??????????????????????? | | ????????????????## ##?????????????????????? | | ????????????????# #?????????????????????? | | ????????????????# Y #?????????????????????? | | ????????????????# #?????????????????????? | | ????????????????# #?????????????????????? | | ????????????????# #?????????????????????? | | ???????########### ###????????????????????? | | ???????# # #??????????????????????? | | ???????# + #??????????????????????? | | ???????# """ # < #??????????????????????? | | ???????? """ [ # #??????????????????????? | | ???????? """ ?#####??????????????????????? | | ?????????""" ????????????????????????????? | +----------------------------------------------------+ Best States ------------- Heat Dissipation 35 Energy Generation 10 Energy Capacity 250 Matter Stores 300 Matter Capacity 300 Sight Range 16 Robot Scan Range 14 Terrain Scan Range 16 Terrain Scan Density 85 Evasion (%) 63 Recoil Reduction 2 Item Schematics ----------------- None Robot Schematics ------------------ None Fabricated ------------ Nothing Repaired ---------- Imp. Terrain Scanner | 18% | -10/Materials Alien Tech Used ----------------- None Achievements -------------- Curiosity Killed The Cat Challenges ------------ None Game ------ Seed BeamZioniteJets Manual? 0 Play Time 00:29:51 Cumulative 6.5 hours Start 2025.06.14 @ 19:09:33 End 2025.06.14 @ 19:39:13 Sessions 1 Manual Loads 0 Difficulty Rogue Special Mode None Game No. 7 Rogue 7 Adventurer 0 Explorer 0 Win Type - Total 0 Types 0/0/0/0/0/0/0/0/0/0 Lore% 3 Gallery% 8 Achievement% 14 Wizard Run 0 Options --------- Layout 0 ASCII 0 Keyboard 1 Movement Vi Keybinds 0 Fullscreen 1 Font 18/SmallcapsGlow Map View 76x50 Zoom Use 0% Tactical HUD 1 Map Filters NONE Filters NONE Steam 1 RUN: c317d642-c5ca-4989-8f8c-c025bd1a6d93